[Event "4NCL 2022-2023"]
[Site "Daventry"]
[Date "2023.02.11"]
[Round "5.14"]
[White "Li, Harry"]
[Black "Kolbus, Dietmar"]
[Result "1/2-1/2"]
[ECO "B19"]
[WhiteElo "2099"]
[BlackElo "2277"]
[Annotator "TA"]
[PlyCount "151"]
[EventDate "2022.10.20"]
[EventType "team-tourn"]
[EventCountry "ENG"]
[SourceTitle "playchess.com"]
[Source "ChessBase"]
[SourceQuality "1"]
[TimeControl "40/6000+30:2400+30"]

{[%evp 33,151,11,42,40,49,35,58,20,37,25,20,22,54,50,52,45,56,58,112,111,114,113,116,117,118,93,94,42,93,90,90,74,93,95,106,105,106,79,77,70,97,25,31,0,0,10,66,69,64,46,50,35,35,0,36,0,95,79,96,96,103,80,77,0,36,36,36,36,42,0,36,36,36,37,119,126,232,232,320,173,193,196,174,0,192,0,0,0,0,0,214,250,339,0,176,160,143,110,259,38,26,0,0,9,0,0,0,0,0,0,0,0,0,0,0,0,0,0,0,0]} 1. e4 {[%emt 0:00:03]} c6 {[%emt 0:00:07]} 2. d4 {[%emt 0:00:07]} d5 {[%emt 0:00:06]} 3. Nd2 {[%emt 0:01:07]} dxe4 {[%emt 0:02:36]} 4. Nxe4 {[%emt 0:00:04]} Bf5 {[%emt 0:00:10]} 5. Ng3 {[%emt 0:00:02]} Bg6 {[%emt 0:00:09]} 6. h4 {[%emt 0:00:01]} h6 {[%emt 0:00:13]} 7. Nf3 {[%emt 0:00:02]} Nd7 {[%emt 0:00:11]} 8. h5 {[%emt 0:00:02]} Bh7 {[%emt 0:00:08]} 9. Bd3 {[%emt 0:00:02]} Bxd3 {[%emt 0:00:59]} 10. Qxd3 {[%emt 0:00:04]} e6 {[%emt 0:00:38]} 11. Bd2 {[%emt 0:00:26]} Ngf6 {[%emt 0:00:21]} 12. O-O-O {[%emt 0:00:06]} Bd6 {[%emt 0:08:21]} 13. Ne4 {[%emt 0:00:35]} Nxe4 {[%emt 0:00:18]} 14. Qxe4 {[%emt 0:00:02]} Nf6 {[%emt 0:00:32]} 15. Qe2 {[%emt 0:00:10]} Qc7 {[%emt 0:04:00]} 16. g3 {[%emt 0:00:02] 16.Kb1 is the modern continuation.} O-O-O {[%emt 0:15:10]} 17. c4 {[%emt 0:00:02]} Qe7 {[%emt 0:05:10]} 18. Kb1 {[%emt 0:08:02][%cal Bc1b1,Bb1a2,Ba2b3,Bb3c2][%mdl 32] B19: Classical Caro-Kann: 4...Bf5 main line.} Kb8 {[%emt 0:00:38]} 19. a3 {[%emt 0:05:53] [#]} Ka8 $146 {[%emt 0:02:08]} ({Predecessor:} 19... Rhe8 20. Bc3 Ka8 21. Ne5 Nd7 22. Nd3 Bc7 23. Rhe1 Nb6 24. Ne5 Nd7 25. Nd3 Nb6 26. Ne5 Rh8 {½-½ Bruzon Batista,L (2666)-Bacallao Alonso,Y (2525) Carlos Torre Memorial op 27th 2015 (9)}) 20. b4 {[%emt 0:03:39] White is slightly better.} Bc7 {[%emt 0:00:39]} 21. Ka2 {[%emt 0:08:19]} Rhe8 {[%emt 0:06:31]} 22. Bc3 {[%emt 0:00:32]} Rc8 {[%emt 0:02:27]} 23. Ne5 {[%emt 0:10:06]} Red8 {[%emt 0:05:01]} 24. f4 {[%emt 0:11:23]} Nd7 {[%emt 0:03:16]} 25. Nd3 {[%emt 0:02:59]} Nb6 {[%emt 0:02:30]} (25... Qe8 $14) 26. Kb3 $1 $16 {[%emt 0:02:12]} Qf8 {[%emt 0:06:13]} 27. a4 {[%emt 0:02:45][%cal Ba3a4,Ba4a5][%mdl 32]} Nd7 {[%emt 0:00:11]} 28. a5 {[%emt 0:00:38]} a6 {[%emt 0:04:05]} 29. Kc2 {[%emt 0:08:04]} Bb8 {[%emt 0:01:10]} 30. Nb2 {[%emt 0:05:10]} (30. g4 $16) 30... Ba7 {[%emt 0:01:59]} (30... Re8 $14) 31. g4 {[%emt 0:02:32]} Re8 {[%emt 0:01:46]} 32. Qf3 {[%emt 0:00:31]} Qd6 {[%emt 0:10:35]} 33. Kb3 {[%emt 0:08:57]} Bb8 {[%emt 0:07:07]} 34. Nd3 {[%emt 0:00:23]} Ba7 {[%emt 0:00:18]} 35. Nf2 {[%emt 0:13:23]} Bb8 {[%emt 0:00:55]} 36. Ne4 {[%emt 0:00:47]} Qe7 {[%emt 0:00:34]} (36... Qxf4 $2 37. Qxf4 Bxf4 38. Rhf1 $18) 37. Be1 {[%emt 0:02:27]} ({White should play} 37. Rhe1 $16) 37... f5 $11 {[%emt 0:02:09]} 38. Nf2 {[%emt 0:05:23]} Rf8 {[%emt 0:01:17]} 39. Nd3 {[%emt 0:01:15]} Nf6 {[%emt 0:01:09]} (39... fxg4 $11 40. Qxg4 Rf5) 40. gxf5 $14 {[%emt 0:01:31]} exf5 {[%emt 0:00:10]} 41. Ne5 {[%emt 0:41:44]} Qe8 {[%emt 0:41:23]} 42. Bf2 {[%emt 0:05:06]} Rd8 {[%emt 0:00:00]} 43. Rdg1 {[%emt 0:00:00]} Ne4 {[%emt 0:00:00]} (43... Ba7 $5 {[%cal Ra7d4]}) 44. Rd1 {[%emt 0:00:00] Repels Nd2+} (44. Rxg7 $2 {too greedy.} Nd2+ 45. Kc3 Nxf3 $19) 44... Nxf2 {[%emt 0:00:00]} (44... Nf6 $11) 45. Qxf2 $16 {[%emt 0:00:00]} Rf6 {[%emt 0:00:00]} 46. Kc3 {[%emt 0:00:00]} Bd6 {[%emt 0:00:00]} 47. Rde1 {[%emt 0:00:00]} Re6 {[%emt 0:00:00]} 48. Ng6 {[%emt 0:00:00]} (48. Rb1 $16) 48... Bb8 {[%emt 0:08:33][%cal Oc6c5]} 49. Rxe6 {[%emt 0:00:00]} Qxe6 {[%emt 0:00:02]} 50. Re1 {[%emt 0:00:00]} Qf6 {[%emt 0:00:11]} 51. c5 {[%emt 0:00:00]} Rd7 {[%emt 0:03:14] Wards off Re7} 52. Qe3 {[%emt 0:00:00]} Bc7 {[%emt 0:02:20]} 53. Qd3 {[%emt 0:00:00]} Kb8 {[%emt 0:04:42]} (53... Ka7 $14) 54. Re8+ {[%emt 0:00:00]} Ka7 {[%emt 0:01:28]} (54... Rd8 $16 55. Rxd8+ Bxd8) 55. Qe3 $1 $18 {[%emt 0:00:00]} Bd8 {[%emt 0:01:54]} 56. Rf8 {[%emt 0:00:00]} (56. Qe5 $142 Qf7 57. Qe6 Qxe6 58. Rxe6) 56... Rf7 {[%emt 0:00:21]} 57. Rg8 {[%emt 0:02:06] White wants to mate with Qe8.} Rd7 {[%emt 0:00:08]} 58. Rf8 {[%emt 0:00:36] Repels Qf7} Rf7 {[%emt 0:00:02]} 59. Qe8 {[%emt 0:00:28]} (59. Rh8 $1 $18 {aiming for Qe8.} Rd7 60. Rf8) 59... Rxf8 $11 {[%emt 0:00:32]} 60. Qxf8 {[%emt 0:00:31][%mdl 4096] Endgame KQB-KQN} Qe6 {[%emt 0:01:01] Repels Qe8. Strongly threatening ...Qe1+.} 61. Ne5 {[%emt 0:00:48] Active counter play!} Bf6 $2 {[%emt 0:00:44]} (61... Qa2 $11 {and Black stays safe.}) 62. Qf7 $1 $18 {[%emt 0:00:12]} Qc8 {[%emt 0:01:03]} 63. Nd7 $2 {[%emt 0:01:07]} ({White should try} 63. Nc4 $18) 63... Qd8 $2 {[%emt 0:00:20] [#]} (63... Qc7 $11) 64. Qe6 $1 {[%emt 0:00:12]} Qc8 {[%emt 0:01:37]} 65. Qxf5 {[%emt 0:02:30]} Qg8 {[%emt 0:00:30] [#] Repels Qe6} (65... Bd8 $16) 66. Nxf6 $2 {[%emt 0:01:27]} (66. Nb6 $1 $18) 66... gxf6 $14 {[%emt 0:00:02]} 67. Qxf6 $18 {[%emt 0:00:05][%cal Of6g6] KQ-KQ} (67. d5 $5 cxd5 68. Qxf6 $16) 67... Qd5 {[%emt 0:00:19] The position is equal.} 68. Qe5 {[%emt 0:01:22] Threatening mate with Qxd5.} Qf3+ {[%emt 0:00:09]} 69. Kd2 {[%emt 0:00:13][%cal Od4d5]} Qf2+ $1 {[%emt 0:00:11]} 70. Kd3 {[%emt 0:00:07]} Qf3+ {[%emt 0:00:05]} 71. Kc2 {[%emt 0:03:31][%cal Od4d5]} Qf2+ {[%emt 0:00:22]} 72. Kb3 {[%emt 0:00:20] Threatens to win with d5.} Qf3+ {[%emt 0:00:06]} 73. Kc2 {[%emt 0:00:51][%cal Od4d5]} Qf2+ {[%emt 0:00:05]} 74. Kd3 {[%emt 0:00:12] Hoping for d5.} Qf3+ {[%emt 0:00:09]} 75. Kd2 {[%emt 0:00:30][%cal Od4d5] And now d5! would win.} Qf2+ $1 {[%emt 0:00:06]} 76. Kd3 {[%emt 0:00:08] Black escapes into a draw.   Weighted Error Value: White=0.27 (precise) /Black=0.21 (precise)} 1/2-1/2

[Event "4NCL 2022-2023"]
[Site "Daventry"]
[Date "2023.02.11"]
[Round "5.15"]
[White "Terbe, Julianna"]
[Black "Arnott, Jonathan W"]
[Result "1/2-1/2"]
[ECO "A96"]
[WhiteElo "2278"]
[BlackElo "2073"]
[Annotator "TA"]
[PlyCount "80"]
[EventDate "2022.10.20"]
[EventType "team-tourn"]
[EventCountry "ENG"]
[SourceTitle "playchess.com"]
[Source "ChessBase"]
[SourceQuality "1"]
[TimeControl "40/6000+30:2400+30"]

{[%evp 16,80,31,11,65,75,51,76,100,99,96,40,50,0,0,-6,0,-33,0,0,0,-9,-5,-4,0,0,0,-8,-14,-6,-8,-8,0,0,0,0,0,0,0,0,0,0,0,0,0,0,0,0,0,0,0,-8,0,0,0,0,0,0,0,0,0,0,0,0,0,0,0]} 1. d4 {[%emt 0:00:04]} e6 {[%emt 0:00:03]} 2. c4 {[%emt 0:00:24]} f5 {[%emt 0:00:08]} 3. Nf3 {[%emt 0:00:40]} Nf6 {[%emt 0:00:03]} 4. g3 {[%emt 0:00:07]} Be7 {[%emt 0:00:06]} 5. Bg2 {[%emt 0:00:04]} O-O {[%emt 0:00:03]} 6. O-O {[%emt 0:00:09]} d6 {[%emt 0:00:03]} 7. Nc3 {[%emt 0:00:21]} Ne4 {[%emt 0:00:03]} 8. Qd3 {[%emt 0:04:02]} Nxc3 {[%emt 0:00:09]} 9. bxc3 {[%emt 0:01:48]} Nd7 {[%emt 0:00:44] A96: Classical Dutch: Fluid Systems: Early deviations.} ({Better is} 9... Nc6 $11) 10. e4 $14 {[%emt 0:00:53]} fxe4 {[%emt 0:01:00]} 11. Qxe4 {[%emt 0:00:07]} Nf6 {[%emt 0:00:07] White is better.} 12. Qe2 {[%emt 0:06:03] [#] White has more active pieces.} c6 $146 {[%emt 0:06:51]} ({Predecessor:} 12... d5 13. Ng5 Qd6 14. Re1 dxc4 15. Nxe6 Bxe6 16. Qxe6+ Qxe6 17. Rxe6 Bd6 18. Bxb7 Rab8 {1-0 Garriga Cazorla,P (2472)-Baker,C (2258) Titled Tuesday intern op 22nd Feb Late blitz 2022 (7)}) 13. Ng5 {[%emt 0:14:12]} (13. Bf4 $16) 13... e5 $1 {[%emt 0:01:21]} 14. dxe5 {[%emt 0:00:31]} (14. f4 $14) 14... dxe5 $11 {[%emt 0:00:05]} 15. h3 {[%emt 0:07:30]} (15. Qxe5 $2 {perishes.} Ng4 16. Qd4 Bxg5 $19) 15... Qa5 {[%emt 0:16:03]} 16. Re1 {[%emt 0:07:16]} Bc5 {[%emt 0:05:51]} (16... h6 $5 {[%cal Rh6g5]} 17. Nf3 (17. Qxe5 Qxe5 18. Rxe5 Bd6 $17) 17... e4 $11) 17. Be3 {[%emt 0:01:22] The position is equal.} ({Much weaker is} 17. Qxe5 Bxf2+ 18. Kh2 Qd8 $17) 17... h6 {[%emt 0:02:31]} 18. Nf3 {[%emt 0:06:24]} Bxe3 {[%emt 0:09:19]} 19. Qxe3 {[%emt 0:00:07]} e4 {[%emt 0:00:31]} 20. Nd2 {[%emt 0:03:57]} Bf5 {[%emt 0:04:04]} 21. Nxe4 {[%emt 0:11:53]} Nxe4 {[%emt 0:09:36]} 22. Bxe4 {[%emt 0:00:06]} Rae8 {[%emt 0:02:05]} 23. Qd4 {[%emt 0:01:01]} Bxe4 {[%emt 0:02:06]} (23... Rd8 $5 24. Qe3 $8 Rde8 $11) 24. Rxe4 {[%emt 0:00:06]} Rxe4 {[%emt 0:01:04]} 25. Qxe4 {[%emt 0:00:05]} Qxc3 {[%emt 0:00:51][%mdl 4096] Endgame KQR-KQR} 26. Re1 {[%emt 0:05:26]} Qf6 {[%emt 0:03:57]} 27. Re2 {[%emt 0:03:19]} Qf5 {[%emt 0:04:35]} 28. Qe7 {[%emt 0:04:10]} Rf7 {[%emt 0:01:31]} 29. Qd8+ {[%emt 0:02:41]} Rf8 {[%emt 0:03:45]} 30. Qd4 {[%emt 0:05:25]} c5 {[%emt 0:06:06]} 31. Qb2 {[%emt 0:00:12]} Qd7 {[%emt 0:01:24]} 32. Qe5 {[%emt 0:02:33]} b6 {[%emt 0:01:22]} 33. Kh2 {[%emt 0:02:35]} Rf3 {[%emt 0:05:56]} 34. Qh5 {[%emt 0:06:58]} Qf7 {[%emt 0:01:45]} 35. Re8+ {[%emt 0:02:34]} Kh7 {[%emt 0:01:33]} 36. Qxf7 {[%emt 0:00:06]} Rxf7 {[%emt 0:00:04]} 37. Kg2 {[%emt 0:00:45]} Rd7 {[%emt 0:00:20]} 38. Kf3 {[%emt 0:02:47]} Rd3+ {[%emt 0:04:17]} 39. Re3 $1 {[%emt 0:00:40]} Rd4 {[%emt 0:02:20]} 40. Re4 {[%emt 0:00:40] [#] And now Rxd4 would win.} Rd3+ {[%emt 0:03:08] Weighted Error Value: White=0.06 (flawless) /Black=0.07 (flawless)} 1/2-1/2

[Event "4NCL 2022-2023"]
[Site "Daventry"]
[Date "2023.02.11"]
[Round "5.16"]
[White "Shaw, Peter"]
[Black "Magold, Victor"]
[Result "1/2-1/2"]
[ECO "E12"]
[WhiteElo "2069"]
[BlackElo "2040"]
[Annotator "TA"]
[PlyCount "60"]
[EventDate "2022.10.20"]
[EventType "team-tourn"]
[EventCountry "ENG"]
[SourceTitle "playchess.com"]
[Source "ChessBase"]
[SourceQuality "1"]
[TimeControl "40/6000+30:2400+30"]

{[%evp 21,60,39,25,43,43,47,54,54,72,61,70,74,95,67,116,120,123,129,110,43,53,23,95,87,83,72,82,72,67,37,37,30,54,0,0,0,19,26,36,50,43]} 1. d4 {[%emt 0:00:05]} Nf6 {[%emt 0:00:19]} 2. c4 {[%emt 0:00:11]} e6 {[%emt 0:00:04]} 3. Nf3 {[%emt 0:00:13]} b6 {[%emt 0:00:52]} 4. a3 {[%emt 0:00:31]} Ba6 {[%emt 0:00:58]} 5. Qc2 {[%emt 0:04:50]} c5 {[%emt 0:03:26]} 6. d5 {[%emt 0:12:38]} exd5 {[%emt 0:02:20]} 7. cxd5 {[%emt 0:00:09]} d6 {[%emt 0:00:34]} 8. Nc3 {[%emt 0:03:53]} g6 {[%emt 0:03:12]} 9. g3 {[%emt 0:03:48]} Bg7 {[%emt 0:00:32]} 10. Bg2 {[%emt 0:00:10]} O-O {[%emt 0:00:06]} 11. O-O {[%emt 0:00:10]} Nbd7 {[%emt 0:03:59]} 12. Bf4 {[%emt 0:07:25] E12: Queen's Indian: Unusual White 4th moves, 4 a3, 4 Nc3 Bb7 5 a3 and 4 Nc3 Bb7 .} Qe7 {[%emt 0:08:12]} 13. Rfe1 {[%emt 0:02:20]} Nh5 {[%emt 0:04:11]} 14. Bg5 {[%emt 0:01:02] [#]} Bf6 $146 {[%emt 0:01:52]} ({Predecessor:} 14... f6 15. Bd2 Ne5 16. Rac1 f5 17. Ng5 Bh6 18. Ne6 Bxd2 19. Qxd2 Rfe8 20. b3 Ng4 21. e4 Ne5 22. exf5 Nd3 23. fxg6 hxg6 24. Ne4 Nxc1 25. Qxc1 Bd3 26. Qh6 {1-0 Helbig,A (1200)-Grott,P (1200) DESC K0015 email 1999 (2.1)}) 15. Bh6 {[%emt 0:04:06]} Bg7 {[%emt 0:06:45]} 16. Bxg7 {[%emt 0:07:32]} Kxg7 {[%emt 0:00:23]} 17. e4 {[%emt 0:00:39]} Rae8 {[%emt 0:27:48]} (17... Ne5 $14 {should be considered.}) 18. Qa4 $16 {[%emt 0:10:22]} Nb8 {[%emt 0:00:28]} 19. e5 {[%emt 0:18:01] [#] aiming for g4. White is more active.} dxe5 {[%emt 0:01:00]} 20. Rxe5 {[%emt 0:00:37]} ({Better is} 20. Nxe5 $16 Nf6 21. f4) 20... Qd7 $14 {[%emt 0:01:43]} 21. Qh4 {[%emt 0:01:19]} (21. Qc2 {simplifies} Nf6 22. Rxe8 Rxe8 23. Nd2) 21... Rxe5 {[%emt 0:23:42]} (21... Qd6 $11 22. Ree1 Nf6) 22. Nxe5 $16 {[%emt 0:00:08]} Qf5 {[%emt 0:00:59]} 23. Qe4 {[%emt 0:16:04]} (23. Qe7 {with more complications.} Qf6 24. Qxf6+ Nxf6 25. f4) 23... Qxe4 {[%emt 0:00:05]} 24. Nxe4 {[%emt 0:00:18]} Nf6 {[%emt 0:02:36] [#] ...Nxe4 would be deadly.} 25. Nxf6 {[%emt 0:06:16]} Kxf6 {[%emt 0:00:05]} 26. Re1 {[%emt 0:00:14]} h5 {[%emt 0:02:07]} 27. Nc6 {[%emt 0:04:24]} (27. f4 $14) 27... Nxc6 $11 {[%emt 0:00:36]} 28. dxc6 {[%emt 0:00:02]} Bb5 {[%emt 0:00:25]} 29. Rd1 {[%emt 0:01:24]} Rc8 {[%emt 0:00:13][%cal Oc8c7]} 30. Rd7 {[%emt 0:00:16][%cal Og2d5] Dodges Rc7. Black must now prevent Bd5!} Re8 {[%emt 0:08:27] Weighted Error Value: White=0.15 (very precise) /Black=0.13 (very precise)} 1/2-1/2

[Event "4NCL 2022-2023"]
[Site "Daventry"]
[Date "2023.02.11"]
[Round "5.17"]
[White "Grieve, Harry"]
[Black "Rudd, Jack"]
[Result "1-0"]
[ECO "B99"]
[WhiteElo "2442"]
[BlackElo "2303"]
[Annotator "TA"]
[PlyCount "75"]
[EventDate "2022.10.20"]
[EventType "team-tourn"]
[EventCountry "ENG"]
[SourceTitle "playchess.com"]
[Source "ChessBase"]
[SourceQuality "1"]
[TimeControl "40/6000+30:2400+30"]

{[%evp 36,75,98,92,98,93,147,98,177,175,576,195,187,158,193,213,233,249,232,161,160,168,160,160,168,168,225,217,224,165,338,320,333,322,337,352,352,324,424,396,420,367]} 1. e4 {[%emt 0:00:01]} c5 {[%emt 0:00:05]} 2. Nf3 {[%emt 0:00:05]} d6 {[%emt 0:00:04]} 3. d4 {[%emt 0:00:04]} cxd4 {[%emt 0:00:05]} 4. Nxd4 {[%emt 0:00:02]} Nf6 {[%emt 0:00:07]} 5. Nc3 {[%emt 0:00:04]} a6 {[%emt 0:00:06]} 6. Bg5 {[%emt 0:01:45]} e6 {[%emt 0:00:16]} 7. f4 {[%emt 0:00:05]} Be7 {[%emt 0:00:07]} 8. Qf3 {[%emt 0:00:06]} Qc7 {[%emt 0:00:06]} 9. O-O-O {[%emt 0:00:06]} Nbd7 {[%emt 0:00:04]} 10. g4 {[%emt 0:00:05]} b5 {[%emt 0:00:05]} 11. Bxf6 {[%emt 0:01:59]} Nxf6 {[%emt 0:00:53]} 12. g5 {[%emt 0:00:04]} Nd7 {[%emt 0:00:09]} 13. f5 {[%emt 0:00:06]} Bxg5+ {[%emt 0:00:46]} 14. Kb1 {[%emt 0:00:09]} Ne5 {[%emt 0:00:05]} 15. Qh5 {[%emt 0:00:07]} Qe7 {[%emt 0:00:06]} 16. Nxe6 {[%emt 0:03:03]} Bxe6 {[%emt 0:00:22]} 17. fxe6 {[%emt 0:00:01]} g6 {[%emt 0:00:09]} 18. exf7+ {[%emt 0:00:54]} Kxf7 {[%emt 0:00:18] [#]} 19. Qh3 $1 {[%emt 0:03:31]} Kg7 {[%emt 0:01:53] B99: Sicilian Najdorf: 6 Bg5 e6 7 f4 Be7 8 Qf3 Qc7 9 0-0-0 Nbd7.} 20. Nd5 {[%emt 0:00:54] [#]} Qf7 $146 {[%emt 0:01:07]} (20... Qa7 $142) ({Predecessor:} 20... Qd8 21. Be2 Rf8 22. Rhf1 Ra7 23. Rxf8 Qxf8 24. Rf1 Rf7 25. Rxf7+ Qxf7 26. Qg3 Bh6 27. Qg1 {1-0 Alsina Leal,D (2469)-Gormally,D (2501) BCF-chT1c 1819 (4NCL) Promotion pool 2018 (10.41)}) 21. Be2 {[%emt 0:06:47]} (21. Qa3 $142) 21... Qf2 {[%emt 0:03:18] [#]} (21... Rac8 $16) 22. Nc7 $1 $18 {[%emt 0:03:19][%csl LRa8,LRd6][%mdl 64] Threatens to win with Ne6+. Discovered Attack} Bf6 $2 {[%emt 0:03:15]} (22... Rae8 {is more resistant.}) 23. Nxa8 $2 {[%emt 0:13:36]} (23. Ne6+ Kf7 24. Nd4) 23... Rxa8 {[%emt 0:00:10]} 24. Bd3 {[%emt 0:00:05]} Qc5 {[%emt 0:01:17]} 25. Rhf1 {[%emt 0:05:18]} Rf8 {[%emt 0:00:57]} 26. Qe6 {[%emt 0:03:12]} Nc6 {[%emt 0:01:30]} 27. Qd5 {[%emt 0:07:00] Wards off Qe5} Qxd5 {[%emt 0:00:17]} 28. exd5 {[%emt 0:00:02]} Ne5 {[%emt 0:00:22]} 29. h3 {[%emt 0:12:39]} Rc8 {[%emt 0:00:46]} 30. Rf4 {[%emt 0:06:24]} Rc5 {[%emt 0:01:05]} (30... g5 $142 31. Rff1 Nxd3 32. Rxd3 Kg6) 31. Be2 {[%emt 0:00:44]} a5 {[%emt 0:02:08]} 32. a3 {[%emt 0:05:31][%cal Ba2a3,Ba3a4][%mdl 32]} Nc4 $2 {[%emt 0:01:12]} (32... g5 {was worth a try.} 33. Re4 h6) 33. Bxc4 {[%emt 0:01:35]} bxc4 {[%emt 0:00:08]} 34. Rdf1 {[%emt 0:19:21]} Be5 {[%emt 0:00:38]} 35. Rf7+ {[%emt 0:00:05]} Kh6 {[%emt 0:00:07]} 36. Rb7 {[%emt 0:03:06] Inhibits Rb5.} Rxd5 {[%emt 0:00:30]} 37. a4 {[%emt 0:00:07]} g5 {[%emt 0:01:04]} 38. Rb5 {[%emt 0:01:39] Black did not feel at home in the position after the opening.   Weighted Error Value: White=0.42/Black=0.62} 1-0

[Event "4NCL 2022-2023"]
[Site "Daventry"]
[Date "2023.02.11"]
[Round "5.18"]
[White "Cooper, John G"]
[Black "Makkar, Rajat"]
[Result "1-0"]
[ECO "E47"]
[WhiteElo "2243"]
[BlackElo "2426"]
[Annotator "TA"]
[PlyCount "55"]
[EventDate "2022.10.20"]
[EventType "team-tourn"]
[EventCountry "ENG"]
[SourceTitle "playchess.com"]
[Source "ChessBase"]
[SourceQuality "1"]
[TimeControl "40/6000+30:2400+30"]

{[%evp 9,55,7,13,14,44,43,85,73,87,79,131,122,151,158,135,123,210,150,225,177,196,137,146,156,187,202,204,198,272,270,283,277,298,291,312,305,388,395,418,316,305,299,883,897,850,833,29995,29996]} 1. d4 {[%emt 0:00:12]} Nf6 {[%emt 0:00:27]} 2. c4 {[%emt 0:00:19]} e6 {[%emt 0:00:16]} 3. Nc3 {[%emt 0:00:26]} Bb4 {[%emt 0:00:25]} 4. e3 {[%emt 0:00:22]} O-O {[%emt 0:00:47]} 5. Bd3 {[%emt 0:00:23]} b6 {[%emt 0:05:45]} 6. Nge2 {[%emt 0:06:01] E47: Nimzo-Indian: Rubinstein: 5 Bd3 without ...d5.} c5 {[%emt 0:11:14] [#]} 7. d5 $1 {[%emt 0:11:01] [#]} Bb7 $146 {[%emt 0:03:05][%cal Re6d5]} (7... exd5 8. cxd5) ({Predecessor:} 7... b5 8. dxe6 fxe6 9. cxb5 d5 10. O-O a6 11. Bd2 Nbd7 12. bxa6 Ne5 13. Bb5 Bxa6 14. Bxa6 Rxa6 {1-0 Sarana,A (2675)-Durarbayli,V (2638) Chess.com Rapid Wk14 Swiss 2022 (6)}) 8. e4 {[%emt 0:10:58] White is better.} b5 {[%emt 0:01:22]} 9. O-O {[%emt 0:00:18]} (9. cxb5 exd5 10. exd5 d6 $14) 9... exd5 {[%emt 0:06:02]} (9... bxc4 $142 10. Bxc4 Re8) 10. cxd5 $16 {[%emt 0:07:16]} (10. Nxd5 d6 $16) (10. exd5 $6 bxc4 11. Bxc4 d6 $11) 10... c4 {[%emt 0:14:21]} 11. Bc2 {[%emt 0:02:32]} Re8 {[%emt 0:00:48]} 12. Ng3 {[%emt 0:09:21]} (12. Nxb5 Nxe4 13. Bxe4 Rxe4 $16) 12... Qb6 {[%emt 0:03:37]} (12... a6 $16) 13. Bg5 {[%emt 0:22:55] Strongly threatening a4.} Na6 {[%emt 0:07:01]} (13... h6 $16) 14. Qf3 {[%emt 0:02:07]} Be7 {[%emt 0:03:44]} 15. e5 {[%emt 0:06:39]} (15. Rae1 $18) 15... Nxd5 {[%emt 0:01:55]} 16. Nxd5 {[%emt 0:00:07]} Bxd5 {[%emt 0:05:36]} 17. Qxd5 $40 {[%emt 0:00:08][%mdl 128] Black is in trouble.} Nb4 {[%emt 0:00:27]} 18. Qd2 {[%emt 0:09:44]} (18. Qxd7 Bxg5 19. Be4 Rab8 $14) 18... Nxc2 {[%emt 0:02:30] [#]} (18... Bxg5 {is a better defense.} 19. Qxb4 (19. Bxh7+ Kxh7 20. Qxg5 Qg6 $11) 19... Rxe5) 19. Bxe7 $1 $18 {[%emt 0:00:09]} (19. Nf5 Bxg5 20. Qxg5 Qg6 21. Ne7+ Rxe7 22. Qxe7 Nxa1 23. Rxa1 Qd3 $17) 19... Nxa1 {[%emt 0:00:09]} 20. Bd6 {[%emt 0:00:25]} Re6 {[%emt 0:03:33]} 21. Rxa1 {[%emt 0:05:37]} f6 {[%emt 0:01:33]} 22. Nf5 {[%emt 0:03:03] aiming for exf6.} (22. Qd5 Rae8 23. Rd1 fxe5 24. Bxe5 Rf8 $18) 22... fxe5 {[%emt 0:06:07] Black is weak on the dark squares} 23. Qg5 {[%emt 0:03:10][%csl Gf5][%cal Rg5g7]} ({Less strong is} 23. Qd5 Rae8 24. Bxe5 Qc6 25. Qxc6 Rxc6 $16) 23... g6 {[%emt 0:01:15]} 24. Nh6+ {[%emt 0:01:56]} Kg7 {[%emt 0:00:10] [#]} 25. Rd1 {[%emt 0:00:29]} ({Worse is} 25. Bxe5+ Rxe5 26. Qxe5+ Kxh6 $11) 25... Rae8 $2 {[%emt 0:11:17] [#]} (25... Qd8 26. Bxe5+ Rxe5 27. Qxe5+ Kxh6) 26. Bxe5+ $1 {[%emt 0:02:13][%mdl 576] Discovered Attack} Rxe5 {[%emt 0:01:01]} 27. Rxd7+ {[%emt 0:00:07]} R8e7 {[%emt 0:01:17]} 28. Qxe5+ {[%emt 0:00:50] An entertaining game by Cooper.   Weighted Error Value: White=0.19 (very precise) /Black=0.48} 1-0